fUSD/lending_fUSD_20260421
["ID","MTS","AMOUNT","RATE_DAILY","PERIOD"]
[420927123,1776736250844,-5376.63,0.00027397,2]
[420927124,1776736250854,-500.0,0.00027397,2]
[420927125,1776736251199,-832.97,0.00027397,2]
[420927126,1776736251208,-500.0,0.00027397,2]
[420927127,1776736251218,-500.0,0.00027397,2]
[420927128,1776736251228,-500.0,0.00027397,2]
[420927129,1776736251237,-500.0,0.00027397,2]
[420927130,1776736251246,-2995.92,0.00027397,2]
[420927131,1776736251256,-500.0,0.00027397,2]
[420927132,1776736251265,-1493.67,0.00027397,2]
[420927133,1776736251275,-589.35,0.00027397,2]
[420927134,1776736251285,-500.0,0.00027397,2]
[420927135,1776736251294,-882.08,0.00027397,2]
[420927136,1776736251304,-819.81,0.00027397,2]
[420927137,1776736251314,-500.0,0.00027397,2]
[420927138,1776736251324,-1544.59,0.00027397,2]
[420927139,1776736251333,-500.0,0.00027397,2]
[420927140,1776736251343,-500.0,0.00027397,2]
[420927141,1776736251353,-500.0,0.00027397,2]
[420927142,1776736251363,-500.0,0.00027397,2]
[420927143,1776736251372,-753.36,0.00027397,2]
[420927144,1776736251382,-2045.79,0.00027397,2]
[420927145,1776736251391,-500.0,0.00027397,2]
[420927146,1776736251400,-500.0,0.00027397,2]
[420927147,1776736251410,-500.0,0.00027397,2]
[420927148,1776736251420,-2631.19,0.00027397,2]
[420927149,1776736251430,-500.0,0.00027397,2]
[420927150,1776736251439,-500.0,0.00027397,2]
[420927151,1776736251449,-500.0,0.00027397,2]
[420927152,1776736251458,-500.0,0.00027397,2]
[420927153,1776736251468,-500.0,0.00027397,2]
[420927154,1776736251478,-511.17,0.00027397,2]
[420927155,1776736251487,-500.0,0.00027397,2]
[420927156,1776736251496,-4328.81,0.00027397,2]
[420927157,1776736251506,-758.36,0.00027397,2]
[420927158,1776736251515,-2535.24,0.00027397,2]
[420927159,1776736251525,-500.0,0.00027397,2]
[420927160,1776736251535,-940.58,0.00027397,2]
[420927161,1776736251545,-500.0,0.00027397,2]
[420927162,1776736251554,-500.0,0.00027397,2]
[420927163,1776736251564,-1461.57,0.00027397,2]
[420927164,1776736251573,-737.75,0.00027397,2]
[420927165,1776736251586,-1649.43,0.00027397,2]
[420927166,1776736251595,-1126.3,0.00027397,2]
[420927167,1776736251604,-500.0,0.00027397,2]
[420927168,1776736251614,-4088.27,0.00027397,2]
[420927169,1776736251623,-3140.22,0.00027397,2]
[420927170,1776736251633,-500.0,0.00027397,2]
[420927171,1776736251642,-500.0,0.00027397,2]
[420927172,1776736251651,-500.0,0.00027397,2]
[420927173,1776736251661,-1154.1,0.00027397,2]
[420927174,1776736251671,-500.0,0.00027397,2]
[420927175,1776736251682,-500.0,0.00027397,2]
[420927176,1776736251692,-2393.28,0.00027397,2]
[420927177,1776736251701,-580.64,0.00027397,2]
[420927178,1776736251711,-609.61,0.00027397,2]
[420927179,1776736251720,-500.0,0.00027397,2]
[420927180,1776736251730,-500.0,0.00027397,2]
[420927181,1776736251740,-550.5,0.00027397,2]
[420927182,1776736251749,-500.0,0.00027397,2]
[420927183,1776736251759,-500.0,0.00027397,2]
[420927184,1776736251768,-2934.54,0.00027397,2]
[420927185,1776736251778,-3162.76,0.00027397,2]
[420927186,1776736251787,-500.0,0.00027397,2]
[420927187,1776736251797,-500.0,0.00027397,2]
[420927188,1776736251806,-500.0,0.00027397,2]
[420927189,1776736251816,-500.0,0.00027397,2]
[420927190,1776736251826,-2015.85,0.00027397,2]
[420927191,1776736251835,-500.0,0.00027397,2]
[420927192,1776736251845,-500.0,0.00027397,2]
[420927193,1776736251854,-500.0,0.00027397,2]
[420927194,1776736251864,-500.0,0.00027397,2]
[420927195,1776736251873,-573.65,0.00027397,2]
[420927196,1776736251883,-500.0,0.00027397,2]
[420927197,1776736251892,-676.49,0.00027397,2]
[420927198,1776736251902,-3649.49,0.00027397,2]
[420927199,1776736251912,-500.0,0.00027397,2]
[420927200,1776736251921,-492.9399158,0.00027397,2]
[420927201,1776736251931,-828.47,0.00027397,2]
[420927202,1776736251941,-500.0,0.00027397,2]
[420927203,1776736251951,-1602.94,0.00027397,2]
[420927204,1776736251961,-500.0,0.00027397,2]
[420927205,1776736251971,-500.0,0.00027397,2]
[420927206,1776736251980,-500.0,0.00027397,2]
[420927207,1776736251990,-500.0,0.00027397,2]
[420927208,1776736252005,-500.0,0.00027397,2]
[420927209,1776736252016,-500.0,0.00027397,2]
[420927210,1776736252027,-500.0,0.00027397,2]
[420927211,1776736252037,-500.0,0.00027397,2]
[420927212,1776736252048,-500.0,0.00027397,2]
[420927213,1776736252059,-1904.29,0.00027397,2]
[420927214,1776736252069,-641.6,0.00027397,2]
[420927215,1776736252080,-500.0,0.00027397,2]
[420927216,1776736252091,-1215.5,0.00027397,2]
[420927217,1776736252101,-648.02683924,0.00027397,2]
[420927218,1776736252112,-500.0,0.00027397,2]
[420927219,1776736252122,-2004.92,0.00027397,2]
[420927220,1776736252133,-1317.58,0.00027397,2]
[420927221,1776736252144,-648.87,0.00027397,2]
[420927222,1776736252155,-1139.33,0.00027397,2]
[420927223,1776736252165,-1633.76,0.00027397,2]
[420927224,1776736252176,-500.0,0.00027397,2]
[420927225,1776736252187,-545.36,0.00027397,2]
[420927226,1776736252197,-2282.72,0.00027397,2]
[420927227,1776736252207,-500.0,0.00027397,2]
[420927228,1776736252218,-1644.58,0.00027397,2]
[420927229,1776736252228,-4479.32,0.00027397,2]
[420927230,1776736252238,-500.0,0.00027397,2]
[420927231,1776736252248,-500.0,0.00027397,2]
[420927232,1776736252258,-500.0,0.00027397,2]
[420927233,1776736252268,-500.0,0.00027397,2]
[420927234,1776736252279,-544.71,0.00027397,2]
[420927235,1776736252289,-1017.04,0.00027397,2]
[420927236,1776736252298,-500.0,0.00027397,2]
[420927237,1776736252308,-961.29,0.00027397,2]
[420927238,1776736252319,-2765.85,0.00027397,2]
[420927239,1776736252329,-644.92697643,0.00027397,2]
[420927240,1776736252339,-500.0,0.00027397,2]
[420927241,1776736252349,-1676.68,0.00027397,2]
[420927242,1776736252359,-500.0,0.00027397,2]
[420927243,1776736252369,-500.0,0.00027397,2]
[420927244,1776736252379,-500.0,0.00027397,2]
[420927245,1776736252389,-1357.91,0.00027397,2]
[420927246,1776736252400,-500.0,0.00027397,2]
[420927247,1776736252410,-914.69,0.00027397,2]
[420927248,1776736252420,-1383.67,0.00027397,2]
[420927249,1776736252431,-500.0,0.00027397,2]
[420927250,1776736252441,-500.0,0.00027397,2]
[420927251,1776736252452,-3851.23,0.00027397,2]
[420927252,1776736252463,-955.88,0.00027397,2]
[420927253,1776736252473,-692.57,0.00027397,2]
[420927254,1776736252484,-573.69,0.00027397,2]
[420927255,1776736252495,-500.0,0.00027397,2]
[420927256,1776736252505,-2319.68,0.00027397,2]
[420927257,1776736252515,-2771.85,0.00027397,2]
[420927258,1776736252525,-500.0,0.00027397,2]
[420927259,1776736252536,-500.0,0.00027397,2]
[420927260,1776736252546,-500.0,0.00027397,2]
[420927261,1776736252556,-1510.67,0.00027397,2]
[420927262,1776736252566,-1041.44,0.00027397,2]
[420927263,1776736252577,-538.7402701,0.00027397,2]
[420927264,1776736252587,-500.0,0.00027397,2]
[420927265,1776736252597,-500.0,0.00027397,2]
[420927266,1776736252612,-500.0,0.00027397,2]
[420927267,1776736252623,-2685.25,0.00027397,2]
[420927268,1776736252633,-2351.3,0.00027397,2]
[420927269,1776736252644,-816.66,0.00027397,2]
[420927270,1776736252655,-3195.42,0.00027397,2]
[420927271,1776736252666,-500.0,0.00027397,2]
[420927272,1776736252676,-956.89,0.00027397,2]
[420927273,1776736252687,-565.03,0.00027397,2]
[420927274,1776736252698,-500.0,0.00027397,2]
[420927275,1776736252708,-2621.81,0.00027397,2]
[420927276,1776736252718,-500.0,0.00027397,2]
[420927277,1776736252729,-500.0,0.00027397,2]
[420927278,1776736252740,-3096.36,0.00027397,2]
[420927279,1776736252751,-500.0,0.00027397,2]
[420927280,1776736252761,-500.0,0.00027397,2]
[420927281,1776736252771,-798.43,0.00027397,2]
[420927282,1776736252781,-1182.2,0.00027397,2]
[420927283,1776736252792,-500.0,0.00027397,2]
[420927284,1776736252802,-500.0,0.00027397,2]
[420927285,1776736252812,-500.0,0.00027397,2]
[420927286,1776736252823,-500.0,0.00027397,2]
[420927287,1776736252834,-878.08,0.00027397,2]
[420927288,1776736252845,-962.91,0.00027397,2]
[420927289,1776736252856,-500.0,0.00027397,2]
[420927290,1776736252867,-1219.14,0.00027397,2]
[420927291,1776736252877,-500.0,0.00027397,2]
[420927292,1776736252888,-500.0,0.00027397,2]
[420927293,1776736252899,-1107.93,0.00027397,2]
[420927294,1776736252910,-500.0,0.00027397,2]
[420927295,1776736252920,-5648.27,0.00027397,2]
[420927296,1776736252931,-500.0,0.00027397,2]
[420927297,1776736252942,-494.39387605,0.00027397,2]
[420927298,1776736252955,-1151.16,0.00027397,2]
[420927299,1776736252966,-500.0,0.00027397,2]
[420927300,1776736252977,-500.0,0.00027397,2]
[420927301,1776736252988,-500.0,0.00027397,2]
[420927302,1776736252999,-2074.68,0.00027397,2]
[420927303,1776736253009,-1773.63,0.00027397,2]
[420927304,1776736253020,-3311.37,0.00027397,2]
[420927305,1776736253031,-850.88,0.00027397,2]
[420927306,1776736253041,-500.0,0.00027397,2]
[420927307,1776736253052,-418.72894172,0.00027397,2]
[420927308,1776736253062,-4594.17,0.00027397,2]
[420927309,1776736253072,-1086.5,0.00027397,2]
[420927310,1776736253082,-500.0,0.00027397,2]
[420927311,1776736253092,-878.7,0.00027397,2]
[420927312,1776736253103,-517.17,0.00027397,2]
[420927313,1776736253113,-2925.02,0.00027397,2]
[420927314,1776736253123,-588.33,0.00027397,2]
[420927315,1776736253133,-3379.98,0.00027397,2]
[420927316,1776736253143,-500.0,0.00027397,2]
[420927317,1776736253153,-500.0,0.00027397,2]
[420927318,1776736253162,-507.8,0.00027397,2]
[420927319,1776736253172,-617.57,0.00027397,2]
[420927320,1776736253182,-851.35,0.00027397,2]
[420927321,1776736253192,-742.98,0.00027397,2]
[420927322,1776736253202,-2738.2,0.00027397,2]
[420927323,1776736253212,-569.25,0.00027397,2]
[420927324,1776736253221,-2544.05,0.00027397,2]
[420927325,1776736253231,-552.84,0.00027397,2]
[420927326,1776736253244,-1362.61,0.00027397,2]
[420927327,1776736253254,-1050.73,0.00027397,2]
[420927328,1776736253264,-1810.27,0.00027397,2]
[420927329,1776736253274,-984.04,0.00027397,2]
[420927330,1776736253284,-500.0,0.00027397,2]
[420927331,1776736253294,-546.67,0.00027397,2]
[420927332,1776736253304,-3073.98,0.00027397,2]
[420927333,1776736253314,-1129.69,0.00027397,2]
[420927334,1776736253323,-500.0,0.00027397,2]
[420927335,1776736253334,-500.0,0.00027397,2]
[420927336,1776736253343,-500.0,0.00027397,2]
[420927337,1776736253353,-774.02,0.00027397,2]
[420927338,1776736253363,-500.0,0.00027397,2]
[420927339,1776736253373,-500.0,0.00027397,2]
[420927340,1776736253383,-2484.5,0.00027397,2]
[420927341,1776736253393,-942.6,0.00027397,2]
[420927342,1776736253402,-3233.85,0.00027397,2]
[420927343,1776736253412,-1010.81,0.00027397,2]
[420927344,1776736253422,-500.0,0.00027397,2]
[420927345,1776736253432,-2158.12,0.00027397,2]
[420927346,1776736253442,-500.0,0.00027397,2]
[420927347,1776736253451,-500.0,0.00027397,2]
[420927348,1776736253461,-500.0,0.00027397,2]
[420927349,1776736253470,-1198.27,0.00027397,2]
[420927350,1776736253480,-500.0,0.00027397,2]
[420927351,1776736253490,-3402.03,0.00027397,2]
[420927352,1776736253500,-1078.72,0.00027397,2]
[420927353,1776736253509,-500.0,0.00027397,2]
[420927354,1776736253519,-4339.49,0.00027397,2]
[420927355,1776736253528,-500.0,0.00027397,2]
[420927356,1776736253537,-2558.39,0.00027397,2]
[420927357,1776736253547,-3716.52,0.00027397,2]
[420927358,1776736253557,-649.83092359,0.00027397,2]
[420927359,1776736253567,-500.0,0.00027397,2]
[420927360,1776736253576,-500.0,0.00027397,2]
[420927361,1776736253585,-500.0,0.00027397,2]
[420927362,1776736253595,-500.0,0.00027397,2]
[420927363,1776736253604,-500.0,0.00027397,2]
[420927364,1776736253613,-1052.07,0.00027397,2]
[420927365,1776736253623,-500.0,0.00027397,2]
[420927366,1776736253946,-1260.92,0.00027397,2]
[420927367,1776736253956,-2097.84,0.00027397,2]
[420927368,1776736253966,-500.0,0.00027397,2]
[420927369,1776736253975,-807.18,0.00027397,2]
[420927370,1776736253984,-500.0,0.00027397,2]
[420927371,1776736253993,-562.58729258,0.00027397,2]
[420927372,1776736254003,-1098.13,0.00027397,2]
[420927373,1776736254012,-500.0,0.00027397,2]
[420927374,1776736254022,-500.0,0.00027397,2]
[420927375,1776736254031,-1034.59,0.00027397,2]
[420927376,1776736254041,-500.0,0.00027397,2]
[420927377,1776736254050,-500.0,0.00027397,2]
[420927378,1776736254060,-500.0,0.00027397,2]
[420927379,1776736254069,-1112.68,0.00027397,2]
[420927380,1776736254079,-500.0,0.00027397,2]
[420927381,1776736254089,-1238.79,0.00027397,2]
[420927382,1776736254098,-730.73,0.00027397,2]
[420927383,1776736254107,-500.0,0.00027397,2]
[420927384,1776736254117,-500.0,0.00027397,2]
[420927385,1776736254126,-500.0,0.00027397,2]
[420927386,1776736254135,-500.0,0.00027397,2]
[420927387,1776736254145,-500.0,0.00027397,2]
[420927388,1776736254154,-1833.6,0.00027397,2]
[420927389,1776736254163,-500.0,0.00027397,2]
[420927390,1776736254173,-1371.43,0.00027397,2]
[420927391,1776736254182,-606.56,0.00027397,2]
[420927392,1776736254192,-826.23,0.00027397,2]
[420927393,1776736254202,-500.0,0.00027397,2]
[420927394,1776736254214,-667.62,0.00027397,2]
[420927395,1776736254224,-775.15,0.00027397,2]
[420927396,1776736254233,-500.0,0.00027397,2]
[420927397,1776736254243,-4520.77,0.00027397,2]
[420927398,1776736254252,-500.0,0.00027397,2]
[420927399,1776736254261,-2921.46,0.00027397,2]
[420927400,1776736254270,-500.0,0.00027397,2]
[420927401,1776736254280,-500.0,0.00027397,2]
[420927402,1776736254289,-3509.2,0.00027397,2]
[420927403,1776736254299,-1512.24,0.00027397,2]
[420927404,1776736254308,-500.0,0.00027397,2]
[420927405,1776736254317,-2317.63,0.00027397,2]
[420927406,1776736254326,-500.0,0.00027397,2]
[420927407,1776736254335,-1807.59,0.00027397,2]
[420927408,1776736254345,-749.55,0.00027397,2]
[420927409,1776736254355,-500.0,0.00027397,2]
[420927410,1776736254364,-1471.5,0.00027397,2]
[420927411,1776736254374,-500.0,0.00027397,2]
[420927412,1776736254384,-500.0,0.00027397,2]
[420927413,1776736254394,-1194.62,0.00027397,2]
[420927414,1776736254403,-500.0,0.00027397,2]
[420927415,1776736254413,-798.26,0.00027397,2]
[420927416,1776736254422,-500.0,0.00027397,2]
[420927417,1776736254431,-633.16,0.00027397,2]
[420927418,1776736254440,-1123.82,0.00027397,2]
[420927419,1776736254450,-500.0,0.00027397,2]
[420927420,1776736254459,-500.0,0.00027397,2]
[420927421,1776736254469,-7197.85,0.00027397,2]
[420927422,1776736254478,-1184.14,0.00027397,2]
[420927423,1776736254487,-1630.62,0.00027397,2]
[420927424,1776736254496,-1402.19,0.00027397,2]
[420927425,1776736254505,-1126.82,0.00027397,2]
[420927426,1776736254514,-500.0,0.00027397,2]
[420927427,1776736254523,-678.38,0.00027397,2]
[420927428,1776736254532,-2791.6,0.00027397,2]
[420927429,1776736254542,-500.0,0.00027397,2]
[420927430,1776736254551,-500.0,0.00027397,2]
[420927431,1776736254560,-500.0,0.00027397,2]
[420927432,1776736254569,-6404.46,0.00027397,2]
[420927433,1776736254578,-1982.07,0.00027397,2]
[420927434,1776736254595,-500.0,0.00027397,2]
[420927435,1776736254603,-500.0,0.00027397,2]
[420927436,1776736254613,-659.52,0.00027397,2]
[420927437,1776736254623,-500.0,0.00027397,2]
[420927438,1776736254632,-1916.68,0.00027397,2]
[420927439,1776736254641,-1731.4,0.00027397,2]
[420927440,1776736254651,-2411.33,0.00027397,2]
[420927441,1776736254661,-500.0,0.00027397,2]
[420927442,1776736254670,-189.0281919,0.00027397,2]
[420927443,1776736254680,-2292.47,0.00027397,2]
[420927444,1776736254691,-500.0,0.00027397,2]
[420927445,1776736254700,-500.0,0.00027397,2]
[420927446,1776736254710,-500.0,0.00027397,2]
[420927447,1776736254720,-500.0,0.00027397,2]
[420927448,1776736254729,-6557.42,0.00027397,2]
[420927449,1776736254739,-500.0,0.00027397,2]
[420927450,1776736254748,-500.0,0.00027397,2]
[420927451,1776736254761,-500.0,0.00027397,2]
[420927452,1776736254771,-1373.37,0.00027397,2]
[420927453,1776736254781,-500.0,0.00027397,2]
[420927454,1776736254791,-1175.94,0.00027397,2]
[420927455,1776736254800,-769.84,0.00027397,2]
[420927456,1776736254810,-4692.1,0.00027397,2]
[420927457,1776736254819,-500.0,0.00027397,2]
[420927458,1776736254829,-1300.45,0.00027397,2]
[420927459,1776736254838,-2057.13,0.00027397,2]
[420927460,1776736254848,-500.0,0.00027397,2]
[420927461,1776736254858,-500.0,0.00027397,2]
[420927462,1776736254867,-773.56,0.00027397,2]
[420927463,1776736254877,-786.73,0.00027397,2]
[420927464,1776736254886,-1206.95,0.00027397,2]
[420927465,1776736254896,-1456.76,0.00027397,2]
[420927466,1776736254906,-500.0,0.00027397,2]
[420927467,1776736254916,-1832.24,0.00027397,2]
[420927468,1776736254925,-500.0,0.00027397,2]
[420927469,1776736254935,-742.52,0.00027397,2]
[420927470,1776736254944,-500.0,0.00027397,2]
[420927471,1776736254954,-983.92,0.00027397,2]
[420927472,1776736254964,-500.0,0.00027397,2]
[420927473,1776736254973,-3831.43,0.00027397,2]
[420927474,1776736254983,-500.0,0.00027397,2]
[420927475,1776736254992,-813.64,0.00027397,2]
[420927476,1776736255001,-4166.66,0.00027397,2]
[420927477,1776736255011,-500.0,0.00027397,2]
[420927478,1776736255021,-3864.24,0.00027397,2]
[420927479,1776736255030,-2644.48,0.00027397,2]
[420927480,1776736255040,-2223.16,0.00027397,2]
[420927481,1776736255050,-3674.26,0.00027397,2]
[420927482,1776736255059,-1269.82,0.00027397,2]
[420927483,1776736255068,-3357.64,0.00027397,2]
[420927484,1776736255078,-673.87,0.00027397,2]
[420927485,1776736255088,-500.0,0.00027397,2]
[420927486,1776736255097,-534.63691961,0.00027397,2]
[420927487,1776736255107,-552.98,0.00027397,2]
[420927488,1776736255116,-500.0,0.00027397,2]
[420927489,1776736255125,-1963.99,0.00027397,2]
[420927490,1776736255134,-500.0,0.00027397,2]
[420927491,1776736255143,-500.0,0.00027397,2]
[420927492,1776736255152,-833.21,0.00027397,2]
[420927493,1776736255162,-2774.53,0.00027397,2]
[420927494,1776736255171,-1571.61,0.00027397,2]
[420927495,1776736255180,-510.11300924,0.00027397,2]
[420927496,1776736255190,-1197.96,0.00027397,2]
[420927497,1776736255199,-2117.97,0.00027397,2]
[420927498,1776736255208,-1592.09,0.00027397,2]
[420927499,1776736255218,-500.0,0.00027397,2]
[420927500,1776736255227,-500.0,0.00027397,2]
[420927501,1776736255236,-500.0,0.00027397,2]
[420927502,1776736255246,-660.38,0.00027397,2]
[420927503,1776736255256,-500.0,0.00027397,2]
[420927504,1776736255265,-908.69,0.00027397,2]
[420927505,1776736255275,-500.0,0.00027397,2]
[420927506,1776736255284,-500.0,0.00027397,2]
[420927507,1776736255293,-2967.65,0.00027397,2]
[420927508,1776736255303,-500.0,0.00027397,2]
[420927509,1776736255313,-528.9,0.00027397,2]
[420927510,1776736255323,-862.73,0.00027397,2]
[420927511,1776736255332,-500.0,0.00027397,2]
[420927512,1776736255341,-699.08,0.00027397,2]
[420927513,1776736255351,-562.42,0.00027397,2]
[420927514,1776736255361,-543.86,0.00027397,2]
[420927515,1776736255370,-1038.33,0.00027397,2]
[420927516,1776736255379,-782.52,0.00027397,2]
[420927517,1776736255388,-500.0,0.00027397,2]
[420927518,1776736255398,-500.0,0.00027397,2]
[420927519,1776736255407,-500.0,0.00027397,2]
[420927520,1776736255417,-500.0,0.00027397,2]
[420927521,1776736255426,-500.0,0.00027397,2]
[420927522,1776736255435,-2668.4,0.00027397,2]
[420927523,1776736255445,-1837.81,0.00027397,2]
[420927524,1776736255455,-500.0,0.00027397,2]
[420927525,1776736255464,-1566.23,0.00027397,2]
[420927526,1776736255474,-500.0,0.00027397,2]
[420927527,1776736255483,-757.88,0.00027397,2]
[420927528,1776736255493,-1085.31,0.00027397,2]
[420927529,1776736255502,-1013.71,0.00027397,2]
[420927530,1776736255512,-703.62,0.00027397,2]
[420927531,1776736255522,-1334.43,0.00027397,2]
[420927532,1776736255531,-500.0,0.00027397,2]
[420927533,1776736255541,-746.27,0.00027397,2]
[420927534,1776736255551,-2568.87,0.00027397,2]
[420927535,1776736255560,-500.0,0.00027397,2]
[420927536,1776736255570,-6502.39,0.00027397,2]
[420927537,1776736255579,-1563.49,0.00027397,2]
[420927538,1776736255589,-500.0,0.00027397,2]
[420927539,1776736255598,-1881.28,0.00027397,2]
[420927540,1776736255607,-1059.91,0.00027397,2]
[420927541,1776736255617,-500.0,0.00027397,2]
[420927542,1776736255626,-7344.34,0.00027397,2]
[420927543,1776736255635,-500.0,0.00027397,2]
[420927544,1776736255645,-500.0,0.00027397,2]
[420927545,1776736255656,-2265.82,0.00027397,2]
[420927546,1776736255665,-2362.03,0.00027397,2]
[420927547,1776736255675,-500.0,0.00027397,2]
[420927548,1776736255684,-581.1,0.00027397,2]
[420927549,1776736255694,-500.0,0.00027397,2]
[420927550,1776736255706,-500.0,0.00027397,2]
[420927551,1776736255716,-844.75,0.00027397,2]
[420927552,1776736255726,-500.0,0.00027397,2]
[420927553,1776736255736,-1367.03,0.00027397,2]
[420927554,1776736255745,-518.06,0.00027397,2]
[420927555,1776736255755,-500.0,0.00027397,2]
[420927556,1776736255764,-2880.56,0.00027397,2]
[420927557,1776736255775,-693.0,0.00027397,2]
[420927558,1776736255784,-2061.56,0.00027397,2]
[420927559,1776736255793,-2056.07,0.00027397,2]
[420927560,1776736255803,-500.0,0.00027397,2]
[420927561,1776736255812,-1321.41,0.00027397,2]
[420927562,1776736255821,-500.0,0.00027397,2]
[420927563,1776736255831,-984.88,0.00027397,2]
[420927564,1776736255840,-973.75,0.00027397,2]
[420927565,1776736255849,-2508.56,0.00027397,2]
[420927566,1776736255858,-1223.92,0.00027397,2]
[420927567,1776736255868,-500.0,0.00027397,2]
[420927568,1776736255878,-500.0,0.00027397,2]
[420927569,1776736255887,-819.32,0.00027397,2]
[420927570,1776736255896,-500.0,0.00027397,2]
[420927571,1776736255906,-500.0,0.00027397,2]
[420927572,1776736255915,-994.36,0.00027397,2]
[420927573,1776736255925,-500.0,0.00027397,2]
[420927574,1776736255934,-3132.88,0.00027397,2]
[420927575,1776736255943,-500.0,0.00027397,2]
[420927576,1776736255952,-3415.65,0.00027397,2]
[420927577,1776736255962,-17087.31,0.00027397,2]
[420927578,1776736255971,-500.0,0.00027397,2]
[420927579,1776736255981,-907.4,0.00027397,2]
[420927580,1776736255990,-1315.51,0.00027397,2]
[420927581,1776736255999,-500.0,0.00027397,2]
[420927582,1776736256009,-1433.59,0.00027397,2]
[420927583,1776736256018,-2980.36,0.00027397,2]
[420927584,1776736256027,-1930.51,0.00027397,2]
[420927585,1776736256037,-1264.84,0.00027397,2]
[420927586,1776736256046,-944.16,0.00027397,2]
[420927587,1776736256055,-500.0,0.00027397,2]
[420927588,1776736256064,-852.22,0.00027397,2]
[420927589,1776736256074,-1704.43,0.00027397,2]
[420927590,1776736256083,-500.0,0.00027397,2]
[420927591,1776736256092,-500.0,0.00027397,2]
[420927592,1776736256102,-2448.52,0.00027397,2]
[420927593,1776736256111,-500.0,0.00027397,2]
[420927594,1776736256120,-500.0,0.00027397,2]
[420927595,1776736256129,-500.0,0.00027397,2]
[420927596,1776736256138,-500.0,0.00027397,2]
[420927597,1776736256148,-1874.58,0.00027397,2]
[420927598,1776736256157,-3329.55,0.00027397,2]
[420927599,1776736256166,-879.62,0.00027397,2]
[420927600,1776736256176,-500.0,0.00027397,2]
[420927601,1776736256186,-632.94,0.00027397,2]
[420927602,1776736256196,-3540.86,0.00027397,2]
[420927603,1776736256205,-500.0,0.00027397,2]
[420927604,1776736256214,-500.0,0.00027397,2]
[420927605,1776736256224,-500.0,0.00027397,2]
[420927606,1776736256233,-500.0,0.00027397,2]
[420927607,1776736256242,-500.0,0.00027397,2]
[420927608,1776736256252,-1991.77,0.00027397,2]
[420927609,1776736256261,-500.0,0.00027397,2]
[420927610,1776736256270,-640.1,0.00027397,2]
[420927611,1776736256281,-2712.42,0.00027397,2]
[420927612,1776736256290,-500.0,0.00027397,2]
[420927613,1776736256299,-1344.7,0.00027397,2]
[420927614,1776736256308,-500.0,0.00027397,2]
[420927615,1776736256317,-500.0,0.00027397,2]
[420927616,1776736256327,-500.0,0.00027397,2]
[420927617,1776736256336,-500.0,0.00027397,2]
[420927618,1776736256346,-1945.44,0.00027397,2]
[420927619,1776736256356,-1802.21,0.00027397,2]
[420927620,1776736256365,-514.37,0.00027397,2]
[420927621,1776736256374,-500.0,0.00027397,2]
[420927622,1776736256383,-500.0,0.00027397,2]